fUSD/lending_fUSD_20260529
["ID","MTS","AMOUNT","RATE_DAILY","PERIOD"]
[423321591,1780056639000,-1259.39874542,0.00013173,2]
[423321592,1780056639000,-2400.0,0.00013268,2]
[423321590,1780056639000,-2000.0,0.00013134,2]
[423321594,1780056639000,-2400.0,0.00013584,2]
[423321593,1780056639000,-2351.0,0.00013348,2]
[423321596,1780056639000,-500.0,0.00013698,2]
[423321544,1780056639000,-209.09056759,0.00011097,2]
[423321571,1780056639000,-1298.12,0.00012205,2]
[423321570,1780056639000,-1741.43,0.00012205,2]
[423321583,1780056639000,-2400.0,0.00012636,2]
[423321572,1780056639000,-150.99,0.00012205,2]
[423321568,1780056639000,-982.38,0.00012205,2]
[423321595,1780056639000,-500.0,0.00013698,2]
[423321547,1780056639000,-1259.39874548,0.00011099,2]
[423321550,1780056639000,-155.46,0.00011294,2]
[423321551,1780056639000,-480.29585256,0.0001151,2]
[423321548,1780056639000,-160.0,0.00011113,2]
[423321549,1780056639000,-960.0,0.0001118,2]
[423321553,1780056639000,-258.83035611,0.0001158,7]
[423321555,1780056639000,-169.9,0.00011764,2]
[423321554,1780056639000,-2000.0,0.00011675,2]
[423321552,1780056639000,-150.0,0.00011545,2]
[423321557,1780056639000,-169.9,0.00011764,2]
[423321545,1780056639000,-215.5484138,0.00011097,2]
[423321569,1780056639000,-999.99,0.00012205,2]
[423321558,1780056639000,-169.9,0.00011764,2]
[423321559,1780056639000,-1614.13298332,0.00011926,2]
[423321561,1780056639000,-1680.0,0.00012134,2]
[423321560,1780056639000,-255.0,0.00012079,2]
[423321563,1780056639000,-250.0,0.00012135,2]
[423321562,1780056639000,-250.0,0.00012135,2]
[423321566,1780056639000,-1668.08,0.00012205,2]
[423321565,1780056639000,-1363.17422478,0.00012185,2]
[423321564,1780056639000,-500.0,0.00012135,2]
[423321567,1780056639000,-299.99,0.00012205,2]
[423321556,1780056639000,-169.9,0.00011764,2]
[423321636,1780056640000,-500.0,0.00013698,2]
[423321633,1780056640000,-500.0,0.00013698,2]
[423321634,1780056640000,-500.0,0.00013698,2]
[423321632,1780056640000,-500.0,0.00013698,2]
[423321626,1780056640000,-500.0,0.00013698,2]
[423321630,1780056640000,-500.0,0.00013698,2]
[423321629,1780056640000,-500.0,0.00013698,2]
[423321627,1780056640000,-500.0,0.00013698,2]
[423321628,1780056640000,-500.0,0.00013698,2]
[423321637,1780056640000,-500.0,0.00013698,2]
[423321631,1780056640000,-500.0,0.00013698,2]
[423321635,1780056640000,-500.0,0.00013698,2]
[423321644,1780056640000,-500.0,0.00013698,2]
[423321640,1780056640000,-500.0,0.00013698,2]
[423321639,1780056640000,-500.0,0.00013698,2]
[423321641,1780056640000,-500.0,0.00013698,2]
[423321643,1780056640000,-500.0,0.00013698,2]
[423321642,1780056640000,-500.0,0.00013698,2]
[423321647,1780056640000,-612.29,0.00013698,2]
[423321646,1780056640000,-288.28618426,0.00013698,2]
[423321645,1780056640000,-500.0,0.00013698,2]
[423321649,1780056640000,-612.29,0.00013698,2]
[423321650,1780056640000,-612.29,0.00013698,2]
[423321648,1780056640000,-612.29,0.00013698,2]
[423321638,1780056640000,-500.0,0.00013698,2]
[423321623,1780056640000,-507.98,0.00013698,2]
[423321597,1780056640000,-500.0,0.00013698,2]
[423321624,1780056640000,-507.98,0.00013698,2]
[423321598,1780056640000,-475.54964142,0.00013698,2]
[423321651,1780056640000,-612.29,0.00013698,2]
[423321600,1780056640000,-500.0,0.00013698,2]
[423321599,1780056640000,-500.0,0.00013698,2]
[423321601,1780056640000,-500.0,0.00013698,2]
[423321603,1780056640000,-500.0,0.00013698,2]
[423321604,1780056640000,-500.0,0.00013698,2]
[423321606,1780056640000,-500.0,0.00013698,2]
[423321605,1780056640000,-500.0,0.00013698,2]
[423321609,1780056640000,-509.61126299,0.00013698,2]
[423321608,1780056640000,-556.86,0.00013698,2]
[423321607,1780056640000,-500.0,0.00013698,2]
[423321610,1780056640000,-500.0,0.00013698,2]
[423321611,1780056640000,-500.0,0.00013698,2]
[423321612,1780056640000,-500.0,0.00013698,2]
[423321615,1780056640000,-500.0,0.00013698,2]
[423321614,1780056640000,-500.0,0.00013698,2]
[423321613,1780056640000,-500.0,0.00013698,2]
[423321617,1780056640000,-500.0,0.00013698,2]
[423321616,1780056640000,-500.0,0.00013698,2]
[423321618,1780056640000,-507.98,0.00013698,2]
[423321619,1780056640000,-507.98,0.00013698,2]
[423321620,1780056640000,-507.98,0.00013698,2]
[423321621,1780056640000,-507.98,0.00013698,2]
[423321622,1780056640000,-507.98,0.00013698,2]
[423321625,1780056640000,-507.98,0.00013698,2]
[423321655,1780056640000,-500.0,0.00013698,2]
[423321652,1780056640000,-612.29,0.00013698,2]
[423321653,1780056640000,-612.29,0.00013698,2]
[423321686,1780056640000,-500.0,0.00013699,2]
[423321685,1780056640000,-500.0,0.00013699,2]
[423321687,1780056640000,-500.0,0.00013699,2]
[423321688,1780056640000,-500.0,0.00013699,2]
[423321689,1780056640000,-500.0,0.00013699,2]
[423321691,1780056640000,-500.0,0.00013699,2]
[423321690,1780056640000,-500.0,0.00013699,2]
[423321694,1780056640000,-500.0,0.00013699,2]
[423321695,1780056640000,-500.0,0.00013699,2]
[423321693,1780056640000,-500.0,0.00013699,2]
[423321692,1780056640000,-500.0,0.00013699,2]
[423321696,1780056640000,-500.0,0.00013699,2]
[423321700,1780056640000,-500.0,0.00013699,2]
[423321698,1780056640000,-500.0,0.00013699,2]
[423321699,1780056640000,-500.0,0.00013699,2]
[423321702,1780056640000,-500.0,0.00013699,2]
[423321701,1780056640000,-500.0,0.00013699,2]
[423321703,1780056640000,-500.0,0.00013699,2]
[423321705,1780056640000,-500.0,0.00013699,2]
[423321704,1780056640000,-500.0,0.00013699,2]
[423321706,1780056640000,-500.0,0.00013699,2]
[423321707,1780056640000,-500.0,0.00013699,2]
[423321708,1780056640000,-500.0,0.00013699,2]
[423321709,1780056640000,-500.0,0.00013699,2]
[423321656,1780056640000,-500.0,0.00013698,2]
[423321683,1780056640000,-500.0,0.00013699,2]
[423321681,1780056640000,-500.0,0.00013699,2]
[423321697,1780056640000,-500.0,0.00013699,2]
[423321682,1780056640000,-500.0,0.00013699,2]
[423321684,1780056640000,-500.0,0.00013699,2]
[423321658,1780056640000,-500.0,0.00013698,2]
[423321660,1780056640000,-500.0,0.00013698,2]
[423321657,1780056640000,-500.0,0.00013698,2]
[423321662,1780056640000,-500.0,0.00013698,2]
[423321659,1780056640000,-500.0,0.00013698,2]
[423321661,1780056640000,-500.0,0.00013698,2]
[423321664,1780056640000,-182.35,0.00013698,2]
[423321663,1780056640000,-500.0,0.00013698,2]
[423321665,1780056640000,-200.0,0.00013699,2]
[423321667,1780056640000,-2500.0,0.00013699,2]
[423321668,1780056640000,-500.0,0.00013699,2]
[423321666,1780056640000,-166.66,0.00013699,2]
[423321654,1780056640000,-513.91009817,0.00013698,2]
[423321677,1780056640000,-500.0,0.00013699,2]
[423321669,1780056640000,-500.0,0.00013699,2]
[423321672,1780056640000,-500.0,0.00013699,2]
[423321671,1780056640000,-500.0,0.00013699,2]
[423321673,1780056640000,-500.0,0.00013699,2]
[423321675,1780056640000,-500.0,0.00013699,2]
[423321674,1780056640000,-500.0,0.00013699,2]
[423321676,1780056640000,-500.0,0.00013699,2]
[423321670,1780056640000,-500.0,0.00013699,2]
[423321678,1780056640000,-500.0,0.00013699,2]
[423321680,1780056640000,-500.0,0.00013699,2]
[423321679,1780056640000,-500.0,0.00013699,2]
[423321743,1780056641000,-1756.84837641,0.00013699,2]
[423321736,1780056641000,-1756.84837641,0.00013699,2]
[423321748,1780056641000,-1756.84837641,0.00013699,2]
[423321750,1780056641000,-1756.84837641,0.00013699,2]
[423321742,1780056641000,-1756.84837641,0.00013699,2]
[423321738,1780056641000,-1756.84837641,0.00013699,2]
[423321745,1780056641000,-1756.84837641,0.00013699,2]
[423321744,1780056641000,-1756.84837641,0.00013699,2]
[423321741,1780056641000,-1756.84837641,0.00013699,2]
[423321740,1780056641000,-1756.84837641,0.00013699,2]
[423321747,1780056641000,-1756.84837641,0.00013699,2]
[423321746,1780056641000,-1756.84837641,0.00013699,2]
[423321749,1780056641000,-1756.84837641,0.00013699,2]
[423321755,1780056641000,-1805.64972021,0.00013699,2]
[423321752,1780056641000,-1805.64972021,0.00013699,2]
[423321753,1780056641000,-1805.64972021,0.00013699,2]
[423321754,1780056641000,-1805.64972021,0.00013699,2]
[423321756,1780056641000,-1805.64972021,0.00013699,2]
[423321758,1780056641000,-546.45,0.00013726,2]
[423321760,1780056641000,-150.0,0.00013726,2]
[423321761,1780056641000,-3329.65,0.00013726,2]
[423321759,1780056641000,-613.54,0.00013726,2]
[423321763,1780056641000,-166.66,0.00013836,2]
[423321764,1780056641000,-2400.0,0.000139,2]
[423321762,1780056641000,-289.63,0.00013726,2]
[423321751,1780056641000,-1756.84837641,0.00013699,2]
[423321739,1780056641000,-1756.84837641,0.00013699,2]
[423321766,1780056641000,-356.0,0.0001394,2]
[423321734,1780056641000,-1756.84837641,0.00013699,2]
[423321710,1780056641000,-500.0,0.00013699,2]
[423321711,1780056641000,-500.0,0.00013699,2]
[423321712,1780056641000,-500.0,0.00013699,2]
[423321714,1780056641000,-500.0,0.00013699,2]
[423321713,1780056641000,-642.67992934,0.00013699,2]
[423321715,1780056641000,-1756.84837641,0.00013699,2]
[423321717,1780056641000,-1756.84837641,0.00013699,2]
[423321716,1780056641000,-1756.84837641,0.00013699,2]
[423321718,1780056641000,-1756.84837641,0.00013699,2]
[423321719,1780056641000,-1756.84837641,0.00013699,2]
[423321720,1780056641000,-1756.84837641,0.00013699,2]
[423321723,1780056641000,-1756.84837641,0.00013699,2]
[423321721,1780056641000,-1756.84837641,0.00013699,2]
[423321722,1780056641000,-1756.84837641,0.00013699,2]
[423321725,1780056641000,-1756.84837641,0.00013699,2]
[423321724,1780056641000,-1756.84837641,0.00013699,2]
[423321726,1780056641000,-1756.84837641,0.00013699,2]
[423321727,1780056641000,-1756.84837641,0.00013699,2]
[423321728,1780056641000,-1756.84837641,0.00013699,2]
[423321732,1780056641000,-1756.84837641,0.00013699,2]
[423321729,1780056641000,-1756.84837641,0.00013699,2]
[423321733,1780056641000,-1756.84837641,0.00013699,2]
[423321731,1780056641000,-1756.84837641,0.00013699,2]
[423321735,1780056641000,-1756.84837641,0.00013699,2]
[423321730,1780056641000,-1756.84837641,0.00013699,2]
[423321737,1780056641000,-1756.84837641,0.00013699,2]
[423321765,1780056641000,-387.07445791,0.00013912,2]
[423321757,1780056641000,-1805.6497202,0.00013699,2]
[423321769,1780056641000,-496.0,0.0001394,2]
[423321795,1780056641000,-14134.09406673,0.00014856,3]
[423321797,1780056641000,-200.0,0.00014856,2]
[423321800,1780056641000,-500.0,0.00014864,2]
[423321802,1780056641000,-25000.0,0.00014865,3]
[423321803,1780056641000,-25000.0,0.00014874,3]
[423321805,1780056641000,-500.0,0.00014882,2]
[423321801,1780056641000,-25000.0,0.00014865,3]
[423321804,1780056641000,-25000.0,0.00014874,3]
[423321807,1780056641000,-500.0,0.00014882,2]
[423321808,1780056641000,-406.0981632,0.00014882,2]
[423321806,1780056641000,-507.98,0.00014882,2]
[423321809,1780056641000,-25000.0,0.00014882,3]
[423321798,1780056641000,-153.0,0.00014856,2]
[423321810,1780056641000,-25000.0,0.00014882,3]
[423321812,1780056641000,-151.0,0.00014888,2]
[423321814,1780056641000,-25000.0,0.00014891,3]
[423321816,1780056641000,-612.29,0.00014899,2]
[423321815,1780056641000,-25000.0,0.00014891,3]
[423321817,1780056641000,-500.0,0.00014899,2]
[423321819,1780056641000,-25000.0,0.000149,3]
[423321818,1780056641000,-25000.0,0.000149,3]
[423321822,1780056641000,-1000.0,0.000149,5]
[423321821,1780056641000,-25000.0,0.000149,3]
[423321820,1780056641000,-25000.0,0.000149,3]
[423321823,1780056641000,-288.28973915,0.00015,2]
[423321767,1780056641000,-161.0,0.0001394,2]
[423321813,1780056641000,-25000.0,0.00014891,3]
[423321799,1780056641000,-612.29,0.00014864,2]
[423321811,1780056641000,-25000.0,0.00014882,3]
[423321792,1780056641000,-25000.0,0.00014838,3]
[423321796,1780056641000,-25000.0,0.00014856,3]
[423321770,1780056641000,-6621.0,0.0001394,2]
[423321768,1780056641000,-2151.0,0.0001394,2]
[423321772,1780056641000,-1103.0,0.00013968,2]
[423321771,1780056641000,-302.0,0.00013968,2]
[423321773,1780056641000,-166.66,0.00013973,2]
[423321774,1780056641000,-960.0,0.00013975,2]
[423321775,1780056641000,-250.0,0.00014,2]
[423321776,1780056641000,-500.0,0.00014016,2]
[423321777,1780056641000,-2051.009111,0.00014097,2]
[423321778,1780056641000,-166.66,0.0001411,2]
[423321781,1780056641000,-500.0,0.00014246,2]
[423321779,1780056641000,-500.0,0.00014246,2]
[423321824,1780056641000,-494.06,0.00015,2]
[423321794,1780056641000,-25000.0,0.00014847,3]
[423321789,1780056641000,-2000.0,0.00014593,2]
[423321782,1780056641000,-500.0,0.00014246,2]
[423321791,1780056641000,-6069.92313682,0.000147,2]
[423321793,1780056641000,-151.0,0.00014844,2]
[423321790,1780056641000,-2677.0,0.00014682,2]
[423321787,1780056641000,-151.0,0.00014392,2]
[423321786,1780056641000,-166.66,0.00014384,2]
[423321785,1780056641000,-190.72078798,0.000143,2]
[423321783,1780056641000,-166.66,0.00014247,2]
[423321784,1780056641000,-5645.69928717,0.0001427,2]
[423321780,1780056641000,-507.98,0.00014246,2]
[423321788,1780056641000,-250.0,0.00014577,2]
[423321864,1780056642000,-194.92,0.00017768,2]
[423321866,1780056642000,-2000.0,0.00017825,2]
[423321862,1780056642000,-150.305,0.00017768,2]
[423321863,1780056642000,-247.554,0.00017768,2]
[423321861,1780056642000,-160.825,0.00017768,2]
[423321858,1780056642000,-5645.69928717,0.00017709,2]
[423321860,1780056642000,-150.753,0.00017768,2]
[423321859,1780056642000,-150.0,0.00017768,2]
[423321854,1780056642000,-152.0,0.00017093,2]
[423321857,1780056642000,-2000.0,0.00017512,2]
[423321867,1780056642000,-2000.0,0.00017825,2]
[423321865,1780056642000,-1356.0,0.00017768,2]
[423321868,1780056642000,-2000.0,0.00017825,2]
[423321882,1780056642000,-500.0,0.00018999,2]
[423321870,1780056642000,-365.5799085,0.00018,2]
[423321871,1780056642000,-350.0,0.00018,2]
[423321872,1780056642000,-151.0,0.00018,4]
[423321875,1780056642000,-365.5799085,0.000184,2]
[423321873,1780056642000,-462.0,0.00018082,2]
[423321877,1780056642000,-365.5799085,0.000185,2]
[423321876,1780056642000,-4414.4,0.0001841,2]
[423321874,1780056642000,-365.5799085,0.000182,2]
[423321878,1780056642000,-365.5799085,0.000187,2]
[423321879,1780056642000,-462.0,0.00018904,2]
[423321881,1780056642000,-507.98,0.00018999,2]
[423321883,1780056642000,-612.29,0.00018999,2]
[423321856,1780056642000,-462.0,0.0001726,2]
[423321869,1780056642000,-1259.39874542,0.00017855,2]
[423321855,1780056642000,-240.0,0.00017093,2]
[423321825,1780056642000,-200.0,0.00015005,2]
[423321852,1780056642000,-152.0,0.00017093,2]
[423321880,1780056642000,-500.0,0.00018999,2]
[423321826,1780056642000,-1600.0,0.00015118,2]
[423321827,1780056642000,-200.0,0.00015155,2]
[423321828,1780056642000,-288.28973915,0.000152,2]
[423321830,1780056642000,-288.28973915,0.000153,2]
[423321831,1780056642000,-200.0,0.00015306,2]
[423321829,1780056642000,-401.69008289,0.00015227,2]
[423321832,1780056642000,-960.0,0.00015373,2]
[423321833,1780056642000,-200.0,0.00015459,2]
[423321834,1780056642000,-288.28973915,0.000155,2]
[423321840,1780056642000,-151.0,0.00016,4]
[423321835,1780056642000,-1259.39874542,0.00015514,2]
[423321836,1780056642000,-1545.0,0.00015514,2]
[423321838,1780056642000,-150.0,0.000159,2]
[423321837,1780056642000,-288.28973915,0.000156,2]
[423321839,1780056642000,-300.0,0.00016,2]
[423321842,1780056642000,-462.0,0.00016438,2]
[423321847,1780056642000,-1272.0,0.00016961,2]
[423321846,1780056642000,-9794.42,0.00016922,2]
[423321841,1780056642000,-2000.0,0.00016053,2]
[423321845,1780056642000,-151.78,0.000168,2]
[423321843,1780056642000,-1600.0,0.00016492,2]
[423321844,1780056642000,-960.0,0.0001677,2]
[423321848,1780056642000,-1225.0,0.00016961,2]
[423321849,1780056642000,-151.0,0.00017,4]
[423321850,1780056642000,-1575.66394522,0.00017093,2]
[423321851,1780056642000,-152.0,0.00017093,2]
[423321853,1780056642000,-152.0,0.00017093,2]
[423321884,1780056642000,-500.0,0.00018999,2]
[423321885,1780056642000,-488.20346784,0.00019,2]
[423321948,1780056642000,-151.0,0.00019178,2]
[423321924,1780056642000,-151.0,0.00019178,2]
[423321921,1780056642000,-151.0,0.00019178,2]
[423321923,1780056642000,-151.0,0.00019178,2]
[423321929,1780056642000,-151.0,0.00019178,2]
[423321925,1780056642000,-151.0,0.00019178,2]
[423321926,1780056642000,-151.0,0.00019178,2]
[423321931,1780056642000,-151.0,0.00019178,2]
[423321928,1780056642000,-151.0,0.00019178,2]
[423321927,1780056642000,-151.0,0.00019178,2]
[423321930,1780056642000,-151.0,0.00019178,2]
[423321934,1780056642000,-151.0,0.00019178,2]
[423321932,1780056642000,-151.0,0.00019178,2]
[423321942,1780056642000,-151.0,0.00019178,2]
[423321933,1780056642000,-151.0,0.00019178,2]
[423321939,1780056642000,-151.0,0.00019178,2]
[423321941,1780056642000,-151.0,0.00019178,2]
[423321937,1780056642000,-151.0,0.00019178,2]
[423321938,1780056642000,-151.0,0.00019178,2]
[423321936,1780056642000,-151.0,0.00019178,2]
[423321935,1780056642000,-151.0,0.00019178,2]
[423321944,1780056642000,-151.0,0.00019178,2]
[423321943,1780056642000,-151.0,0.00019178,2]
[423321945,1780056642000,-151.0,0.00019178,2]
[423321947,1780056642000,-151.0,0.00019178,2]
[423321886,1780056642000,-199477.73698932,0.00019,2]
[423321949,1780056642000,-151.0,0.00019178,2]
[423321946,1780056642000,-151.0,0.00019178,2]
[423321922,1780056642000,-151.0,0.00019178,2]
[423321919,1780056642000,-151.0,0.00019178,2]
[423321940,1780056642000,-151.0,0.00019178,2]
[423321916,1780056642000,-151.0,0.00019178,2]
[423321887,1780056642000,-731.0,0.00019,2]
[423321888,1780056642000,-151.0,0.00019,4]
[423321920,1780056642000,-151.0,0.00019178,2]
[423321889,1780056642000,-1000.0,0.00019,2]
[423321891,1780056642000,-646.40944377,0.00019178,2]
[423321892,1780056642000,-151.0,0.00019178,2]
[423321893,1780056642000,-151.0,0.00019178,2]
[423321896,1780056642000,-151.0,0.00019178,2]
[423321894,1780056642000,-151.0,0.00019178,2]
[423321895,1780056642000,-151.0,0.00019178,2]
[423321897,1780056642000,-151.0,0.00019178,2]
[423321898,1780056642000,-151.0,0.00019178,2]
[423321899,1780056642000,-151.0,0.00019178,2]
[423321901,1780056642000,-151.0,0.00019178,2]
[423321890,1780056642000,-3512.0,0.00019002,5]
[423321902,1780056642000,-151.0,0.00019178,2]
[423321900,1780056642000,-151.0,0.00019178,2]
[423321915,1780056642000,-151.0,0.00019178,2]
[423321914,1780056642000,-151.0,0.00019178,2]
[423321913,1780056642000,-151.0,0.00019178,2]
[423321911,1780056642000,-151.0,0.00019178,2]
[423321912,1780056642000,-151.0,0.00019178,2]
[423321918,1780056642000,-151.0,0.00019178,2]
[423321905,1780056642000,-151.0,0.00019178,2]
[423321908,1780056642000,-151.0,0.00019178,2]
[423321910,1780056642000,-151.0,0.00019178,2]
[423321904,1780056642000,-151.0,0.00019178,2]
[423321906,1780056642000,-151.0,0.00019178,2]
[423321903,1780056642000,-151.0,0.00019178,2]
[423322001,1780056643000,-151.0,0.00019178,2]
[423322000,1780056643000,-151.0,0.00019178,2]
[423321999,1780056643000,-151.0,0.00019178,2]
[423322002,1780056643000,-151.0,0.00019178,2]
[423321995,1780056643000,-151.0,0.00019178,2]
[423321991,1780056643000,-151.0,0.00019178,2]
[423321996,1780056643000,-151.0,0.00019178,2]
[423321993,1780056643000,-151.0,0.00019178,2]
[423321992,1780056643000,-151.0,0.00019178,2]
[423321998,1780056643000,-151.0,0.00019178,2]
[423321997,1780056643000,-151.0,0.00019178,2]
[423322004,1780056643000,-151.0,0.00019178,2]
[423322009,1780056643000,-222.0,0.00019452,2]
[423322005,1780056643000,-151.0,0.00019178,2]
[423322006,1780056643000,-151.0,0.00019178,2]
[423322007,1780056643000,-546.45,0.00019217,2]
[423322008,1780056643000,-150.0,0.00019223,3]
[423322010,1780056643000,-401.69008289,0.00019521,2]
[423322012,1780056643000,-1272.0,0.00019961,2]
[423322011,1780056643000,-462.0,0.00019726,2]
[423322013,1780056643000,-1225.0,0.00019961,2]
[423322015,1780056643000,-5338.0,0.0002,2]
[423322014,1780056643000,-904.0,0.0002,2]
[423321994,1780056643000,-151.0,0.00019178,2]
[423322003,1780056643000,-151.0,0.00019178,2]
[423321990,1780056643000,-151.0,0.00019178,2]
[423322016,1780056643000,-400.0,0.0002,2]
[423321987,1780056643000,-151.0,0.00019178,2]
[423321951,1780056643000,-151.0,0.00019178,2]
[423321953,1780056643000,-151.0,0.00019178,2]
[423321956,1780056643000,-151.0,0.00019178,2]
[423321954,1780056643000,-151.0,0.00019178,2]
[423321950,1780056643000,-151.0,0.00019178,2]
[423321952,1780056643000,-151.0,0.00019178,2]
[423321958,1780056643000,-151.0,0.00019178,2]
[423321960,1780056643000,-151.0,0.00019178,2]
[423321963,1780056643000,-151.0,0.00019178,2]
[423321965,1780056643000,-151.0,0.00019178,2]
[423321964,1780056643000,-151.0,0.00019178,2]
[423321975,1780056643000,-151.0,0.00019178,2]
[423321986,1780056643000,-151.0,0.00019178,2]
[423321967,1780056643000,-151.0,0.00019178,2]
[423321966,1780056643000,-151.0,0.00019178,2]
[423321969,1780056643000,-151.0,0.00019178,2]
[423321972,1780056643000,-151.0,0.00019178,2]
[423321978,1780056643000,-151.0,0.00019178,2]
[423321976,1780056643000,-151.0,0.00019178,2]
[423321977,1780056643000,-151.0,0.00019178,2]
[423321979,1780056643000,-151.0,0.00019178,2]
[423321981,1780056643000,-151.0,0.00019178,2]
[423321982,1780056643000,-151.0,0.00019178,2]
[423321983,1780056643000,-151.0,0.00019178,2]
[423321985,1780056643000,-151.0,0.00019178,2]
[423321989,1780056643000,-151.0,0.00019178,2]
[423321968,1780056643000,-151.0,0.00019178,2]
[423322018,1780056643000,-823.0,0.0002,2]
[423322021,1780056643000,-200.0,0.0002,10]
[423322019,1780056643000,-1042.0,0.0002,2]
[423322054,1780056643000,-151.0,0.00020036,2]
[423322052,1780056643000,-151.0,0.00020036,2]
[423322055,1780056643000,-721.12765534,0.00020036,2]
[423322056,1780056643000,-200.0,0.00020036,2]
[423322058,1780056643000,-500.0,0.00020036,2]
[423322059,1780056643000,-151.0,0.00020036,2]
[423322057,1780056643000,-238.60871557,0.00020036,2]
[423322060,1780056643000,-151.0,0.00020036,2]
[423322061,1780056643000,-152.0,0.00020036,2]
[423322062,1780056643000,-247.43723804,0.00020036,2]
[423322064,1780056643000,-151.0,0.00020036,2]
[423322063,1780056643000,-500.0,0.00020036,2]
[423322066,1780056643000,-152.0,0.00020036,2]
[423322067,1780056643000,-256.59241585,0.00020036,2]
[423322071,1780056643000,-152.0,0.00020036,2]
[423322068,1780056643000,-500.0,0.00020036,2]
[423322070,1780056643000,-151.0,0.00020036,2]
[423322069,1780056643000,-151.0,0.00020036,2]
[423322072,1780056643000,-266.08633524,0.00020036,2]
[423322074,1780056643000,-151.0,0.00020036,2]
[423322073,1780056643000,-500.0,0.00020036,2]
[423322075,1780056643000,-151.0,0.00020036,2]
[423322076,1780056643000,-152.0,0.00020036,2]
[423322077,1780056643000,-275.93152964,0.00020036,2]
[423322017,1780056643000,-300.59065511,0.0002,2]
[423322051,1780056643000,-230.09519341,0.00020036,2]
[423322053,1780056643000,-151.0,0.00020036,2]
[423322065,1780056643000,-151.0,0.00020036,2]
[423322050,1780056643000,-151.0,0.00020036,2]
[423322049,1780056643000,-221.88543241,0.00020036,2]
[423322022,1780056643000,-2182.0,0.0002,2]
[423322023,1780056643000,-896.0,0.0002,2]
[423322024,1780056643000,-27907.31,0.0002,2]
[423322020,1780056643000,-731.0,0.0002,2]
[423322025,1780056643000,-835.0,0.0002,2]
[423322027,1780056643000,-2043.0,0.0002,2]
[423322029,1780056643000,-323.68682019,0.00020036,2]
[423322026,1780056643000,-697.0,0.0002,2]
[423322030,1780056643000,-174.61919141,0.00020036,2]
[423322031,1780056643000,-859.80605064,0.00020036,2]
[423322036,1780056643000,-151.0,0.00020036,2]
[423322035,1780056643000,-693.39197629,0.00020036,2]
[423322028,1780056643000,-296.82076159,0.0002,4]
[423322045,1780056643000,-151.0,0.00020036,2]
[423322048,1780056643000,-151.0,0.00020036,2]
[423322033,1780056643000,-151.0,0.00020036,2]
[423322046,1780056643000,-2080.17592889,0.00020036,2]
[423322047,1780056643000,-151.0,0.00020036,2]
[423322038,1780056643000,-151.0,0.00020036,2]
[423322044,1780056643000,-151.0,0.00020036,2]
[423322039,1780056643000,-275.92646081,0.00020036,2]
[423322040,1780056643000,-151.0,0.00020036,2]
[423322037,1780056643000,-151.0,0.00020036,2]
[423322032,1780056643000,-242.15909248,0.00020036,2]
[423322034,1780056643000,-1428.38747117,0.00020036,2]
[423322042,1780056643000,-578.20924308,0.00020036,2]
[423322118,1780056644000,-646.40944377,0.00020352,2]